bitfinex-derivatives/quotes_SOLF0:USTF0_20250821
["timestamp","ask_amount","ask_price","bid_price","bid_amount"]
[1755810667484,3.13921327,180.42,180.39,2.93]
[1755810667684,3.13921327,180.42,180.36,2.93]
[1755810668184,3.13921327,180.42,180.33,376.23409116]
[1755810668185,3.91330443,180.42,180.33,372.36]
[1755810668384,3.1,180.4,180.33,375.29]
[1755810668581,3.1,180.4,180.33,2.93]
[1755810669182,0.03748609,180.38,180.3,142.15409116]
[1755810669382,3.1,180.37,180.34,2.93]
[1755810670988,3.1,180.37,180.31,2.93]
[1755810671887,3.1,180.37,180.29,2.93]
[1755810672592,0.03645782,180.35,180.29,2.93]
[1755810672782,3.13645782,180.35,180.29,2.93]
[1755810676492,0.03645782,180.35,180.31,2.93]
[1755810676788,0.03645782,180.35,180.3,3.87409116]
[1755810676984,3.87409116,180.36,180.28,2.93]
[1755810677192,0.03621763,180.34,180.28,2.93]
[1755810677988,3.1,180.32,180.28,2.93]
[1755810678893,3.1,180.32,180.24,3.87409116]
[1755810679096,3.1,180.32,180.25,2.93]
[1755810679594,3.1,180.32,180.26,3.87409116]
[1755810679595,0.03510892,180.3,180.26,3.87409116]
[1755810679796,0.03510892,180.3,180.28,2.93]
[1755810680094,0.03510892,180.3,180.29,2.93]
[1755810682191,3.13510892,180.3,180.27,2.93]
[1755810682695,3.13510892,180.3,180.26,3.87409116]
[1755810682696,0.03510892,180.3,180.28,2.93]
[1755810682992,3.04510892,180.3,180.28,2.93]
[1755810683190,3.04510892,180.3,180.27,3.0]
[1755810685992,3.04510892,180.3,180.24,3.0]
[1755810688399,3.87409116,180.29,180.21,141.2]
[1755810688791,3.87409116,180.29,180.22,3.0]
[1755810688997,3.04510892,180.3,180.24,3.0]
[1755810690598,0.03510892,180.3,180.28,3.0]
[1755810690902,0.03510892,180.3,180.29,3.0]
[1755810695502,0.03510892,180.3,180.29,6.87409116]
[1755810698409,3.01,180.4,180.3,2.97]
[1755810698608,3.01,180.4,180.34,2.97]
[1755810699709,3.01,180.4,180.35,0.04239703]
[1755810699905,3.01,180.39,180.36,2.97]
[1755810700208,3.01,180.39,180.35,3.01239703]
[1755810700408,3.01,180.4,180.35,3.01239703]
[1755810700601,3.01,180.39,180.35,3.01239703]
[1755810700799,3.01,180.39,180.35,0.04239703]
[1755810701001,3.01,180.39,180.36,2.97]
[1755810702610,3.01,180.4,180.37,2.97]
[1755810703107,214.16059305,180.41,180.35,0.04239703]
[1755810703307,217.17059305,180.41,180.37,2.97]
[1755810703507,217.17059305,180.41,180.35,0.04239703]
[1755810703707,214.16059305,180.41,180.36,3.87409116]
[1755810704007,214.16059305,180.41,180.38,2.97]
[1755810704310,214.16059305,180.41,180.39,2.97]
[1755810704507,214.16059305,180.41,180.36,3.87409116]
[1755810704508,214.16059305,180.41,180.4,2.97]
[1755810704711,214.16059305,180.41,180.36,3.87409116]
[1755810704910,214.16059305,180.41,180.38,2.97]
[1755810705208,214.16059305,180.41,180.4,2.97]
[1755810707606,214.16059305,180.41,180.37,0.03841975]
[1755810707912,214.16059305,180.41,180.39,2.97]
[1755810708116,3.01,180.44,180.41,2.97]
[1755810708309,3.01,180.44,180.38,3.87409116]
[1755810708711,3.01,180.49,180.42,2.97]
[1755810709214,0.04267069,180.47,180.42,2.97]
[1755810709409,3.01,180.46,180.42,2.97]
[1755810709713,3.01,180.45,180.44,0.03758315]
[1755810710808,3.01,180.45,180.36,2.97]
[1755810711112,3.01,180.43,180.36,2.97]
[1755810712317,3.01,180.4,180.33,6.87409116]
[1755810713317,0.03875259,180.41,180.39,2.98]
[1755810713712,3.87409116,180.48,180.38,3.87409116]
[1755810713919,3.87409116,180.45,180.35,6.85409116]
[1755810714114,0.03972297,180.42,180.37,3.87409116]
[1755810714419,0.03972297,180.42,180.4,2.98]
[1755810714618,2.89,180.44,180.4,2.98]
[1755810714918,0.0406576,180.43,180.42,2.98]
[1755810715213,2.89,180.53,180.42,2.98]
[1755810715416,2.89,180.53,180.44,3.87409116]
[1755810716317,2.89,180.51,180.42,6.85409116]
[1755810718423,2.89,180.51,180.42,2.98]
[1755810718619,2.89,180.51,180.43,3.87409116]
[1755810720025,2.89,180.54,180.44,2.98]
[1755810720226,3.87409116,180.54,180.44,2.98]
[1755810720420,2.89,180.53,180.44,2.98]
[1755810724328,2.89,180.51,180.4,2.98]
[1755810724628,2.89,180.51,180.47,0.0412502]
[1755810725329,2.89,180.49,180.47,0.0412502]
[1755810725732,2.89,180.49,180.3,137.9]
[1755810725733,2.89,180.47,180.37,2.98]
[1755810725935,3.87409116,180.48,180.37,2.98]
[1755810725936,2.89,180.45,180.37,2.98]
[1755810727035,0.03597456,180.43,180.37,2.98]
[1755810730632,0.03597456,180.43,180.4,3.87409116]
[1755810730838,0.03597456,180.43,180.38,3.87409116]
[1755810731038,0.03597456,180.43,180.37,2.98]
[1755810731235,2.89,180.45,180.37,2.98]
[1755810731539,0.04041659,180.42,180.37,2.98]
[1755810731739,0.04041659,180.42,180.36,3.87409116]
[1755810731938,0.04041659,180.42,180.39,2.98]
[1755810732143,0.04041659,180.42,180.4,2.98]
[1755810733636,0.04041659,180.42,180.41,2.98]
[1755810735638,2.89,180.51,180.41,3.54]
[1755810735941,2.89,180.51,180.44,2.98]
[1755810737041,2.89,180.51,180.47,2.98]
[1755810737744,2.89,180.51,180.46,0.03510996]
[1755810737745,2.89,180.55,180.48,2.98]
[1755810738444,2.89,180.55,180.5,0.03634331]
[1755810738645,3.87409116,180.56,180.5,0.03634331]
[1755810738846,2.89,180.55,180.5,0.03634331]
[1755810739047,3.87409116,180.56,180.5,0.03634331]
[1755810739440,3.87409116,180.54,180.5,0.03634331]
[1755810739841,2.89,180.51,180.45,2.98]
[1755810740148,2.89,180.51,180.5,0.04020553]
[1755810740541,2.89,180.51,180.45,2.98]
[1755810740943,2.89,180.51,180.49,0.03620625]
[1755810741246,3.87409116,180.57,180.49,3.01620625]
[1755810742242,2.89,180.56,180.49,3.01620625]
[1755810743345,2.84,180.59,180.49,3.01620625]
[1755810744243,2.84,180.59,180.49,6.89029741]
[1755810747248,2.84,180.59,180.49,12.43189741]
[1755810747651,2.84,180.59,180.51,3.87409116]
[1755810747846,2.84,180.59,180.52,8.5008]
[1755810748052,2.84,180.59,180.53,2.96]
[1755810748444,2.84,180.59,180.54,3.00032431]
[1755810748749,2.84,180.59,180.55,2.96]
[1755810749051,335.28648097,180.62,180.55,2.96]
[1755810749248,2.84,180.61,180.55,2.96]
[1755810749649,335.28648097,180.62,180.55,2.96]
[1755810750243,2.84,180.63,180.55,2.96]
[1755810751754,2.84,180.63,180.56,3.87409116]
[1755810752152,2.84,180.63,180.58,5.5389]
[1755810752347,2.84,180.63,180.56,3.87409116]
[1755810752542,137.7,180.67,180.58,2.99970034]
[1755810752744,2.84,180.65,180.58,8.53860034]
[1755810753449,2.84,180.65,180.58,2.99970034]
[1755810753855,2.84,180.65,180.58,6.8737915]
[1755810754450,2.84,180.65,180.59,5.5384]
[1755810755055,2.84,180.64,180.6,8.4983]
[1755810755856,2.84,180.64,180.6,2.99581505]
[1755810757148,3.87409116,180.66,180.6,0.03581505]
[1755810757354,2.84,180.63,180.6,0.03581505]
[1755810757852,3.87409116,180.66,180.6,0.03581505]
[1755810757853,2.84,180.62,180.6,0.03581505]
[1755810762252,2.84,180.69,180.62,2.96]
[1755810762456,2.84,180.77,180.68,2.96]
[1755810762659,2.84,180.77,180.7,3.87409116]
[1755810762950,2.84,180.75,180.68,2.96]
[1755810763158,2.84,180.74,180.71,0.0400681]
[1755810763357,3.87409116,180.76,180.71,0.0400681]
[1755810763660,2.84,180.72,180.71,0.0400681]
[1755810766353,3.87409116,180.74,180.71,0.0400681]
[1755810766558,2.84,180.73,180.71,0.0400681]
[1755810767056,2.84,180.72,180.71,0.0400681]
[1755810770868,6.71409116,180.72,180.71,0.0400681]
[1755810771366,2.84,180.72,180.71,0.0400681]
[1755810772869,6.71409116,180.72,180.71,0.0400681]
[1755810774367,2.84,180.72,180.71,0.0400681]
[1755810776877,2.84,180.72,180.64,2.96]
[1755810777167,2.84,180.72,180.61,372.22]
[1755810777168,6.85409116,180.69,180.61,3.01]
[1755810778273,0.03504459,180.67,180.61,3.01]
[1755810778770,0.03504459,180.67,180.61,5.5379]
[1755810778970,0.03504459,180.67,180.61,3.01]
[1755810781077,3.87409116,180.66,180.58,3.01]
[1755810781276,3.87409116,180.64,180.58,3.01]
[1755810781874,0.04029659,180.63,180.58,3.01]
[1755810782078,2.98,180.62,180.58,3.01]
[1755810782278,2.98,180.61,180.54,6.88409116]
[1755810782476,2.98,180.61,180.54,3.01]
[1755810782671,6.21143778,180.71,180.54,3.01]
[1755810782672,6.85409116,180.64,180.54,8.5501]
[1755810782877,6.85409116,180.64,180.55,3.01]
[1755810783079,6.85409116,180.64,180.54,9.41419116]
[1755810783080,0.03661635,180.59,180.54,9.41419116]
[1755810783274,0.03661635,180.59,180.58,3.01]
[1755810786882,2.98,180.71,180.59,2.97]
[1755810787181,2.98,180.74,180.66,2.97]
[1755810787376,2.98,180.7,180.61,6.84409116]
[1755810787772,2.98,180.7,180.63,3.87409116]
[1755810788373,2.98,180.7,180.62,6.84409116]
[1755810788978,2.98,180.7,180.64,0.03645277]
[1755810793977,2.98,180.67,180.64,0.03645277]
[1755810794181,2.98,180.65,180.64,0.03645277]
[1755810794382,2.98,180.65,180.55,2.97]
[1755810794578,6.85409116,180.63,180.55,2.97]
[1755810794781,3.87409116,180.61,180.55,2.97]
[1755810794984,6.85409116,180.61,180.52,2.97]
[1755810795589,0.04238257,180.58,180.52,2.97]
[1755810796285,0.04238257,180.58,180.52,8.5108]
[1755810796790,0.04238257,180.58,180.53,2.97]
[1755810796985,0.04238257,180.58,180.57,2.97]
[1755810798389,6.21143778,180.71,180.57,2.97]
[1755810798390,2.98,180.7,180.57,3.53]
[1755810798591,2.98,180.7,180.64,3.87409116]
[1755810799292,2.98,180.73,180.64,3.87409116]
[1755810799496,2.98,180.73,180.65,0.03494225]
[1755810803906,2.98,180.73,180.65,2.87494225]
[1755810804797,2.98,180.73,180.65,8.41174225]
[1755810804995,2.98,180.73,180.65,2.87494225]
[1755810806299,2.98,180.73,180.65,0.03494225]
[1755810807903,6.2916986,180.72,180.65,0.03494225]
[1755810808209,3.11,180.71,180.65,0.03494225]
[1755810809700,3.11,180.76,180.66,2.84]
[1755810810408,3.11,180.76,180.69,0.0419035]
[1755810813510,3.11,180.76,180.69,5.5775035]
[1755810813912,3.11,180.81,180.7,2.84]
[1755810814216,3.11,180.81,180.71,2.84]
[1755810814608,3.11,180.81,180.74,0.03675449]
[1755810818718,3.11,180.81,180.74,5.57065449]
[1755810819110,3.11,180.81,180.75,2.84]
[1755810819309,3.11,180.84,180.75,2.84]
[1755810820015,3.11,180.84,180.78,0.03638028]
[1755810821419,9.4016986,180.84,180.78,0.03638028]
[1755810821618,3.11,180.83,180.78,0.03638028]
[1755810821819,6.2916986,180.84,180.78,0.03638028]
[1755810822014,3.11,180.81,180.78,0.03638028]
[1755810822524,6.96759546,180.88,180.79,2.84]
[1755810823025,3.11,180.87,180.79,2.84]
[1755810823416,3.11,180.86,180.82,0.03635331]
[1755810823617,3.85759546,180.88,180.82,0.03635331]
[1755810823913,3.11,180.83,180.82,0.03635331]
[1755810824318,3.11,180.85,180.82,0.03635331]
[1755810824524,3.11,180.84,180.82,0.03635331]
[1755810824924,3.85759546,180.89,180.82,0.03635331]
[1755810825118,3.11,180.88,180.82,0.03635331]
[1755810825628,3.11,180.9,180.82,2.87635331]
[1755810826226,3.11,180.9,180.82,2.84]
[1755810826423,3.11,180.9,180.84,0.03979568]
[1755810827526,375.07,180.93,180.85,2.84]
[1755810827921,3.11,180.93,180.85,2.84]
[1755810828323,140.52,180.99,180.88,2.84]
[1755810828523,3.11,180.98,180.88,2.84]
[1755810828922,3.11,180.98,180.9,3.85759546]
[1755810829122,3.11,180.98,180.91,2.87549985]
[1755810830325,3.11,181.01,180.94,2.84]
[1755810830527,3.11,181.01,180.94,6.69759546]
[1755810830826,3.11,181.01,180.94,2.84]
[1755810831025,3.11,181.01,180.92,3.85759546]
[1755810831226,3.11,180.98,180.96,0.04217085]
[1755810831430,3.11,181.02,180.96,0.04217085]
[1755810833625,141.4,181.05,180.96,0.04217085]
[1755810833626,2.87,180.98,180.96,0.04217085]
[1755810833825,2.87,180.97,180.96,0.04217085]
[1755810834025,2.87,181.02,180.96,0.04217085]
[1755810836130,2.87,181.02,180.96,3.02217085]
[1755810837031,2.87,181.05,180.96,3.02217085]
[1755810837229,2.87,181.05,180.96,9.29375967]
[1755810837930,2.87,181.05,180.96,3.02217085]
[1755810840538,6.27158882,181.02,180.96,0.04217085]
[1755810840738,2.87,180.99,180.96,0.04217085]
[1755810840934,2.87,180.97,180.89,6.27158882]
[1755810841131,2.87,181.0,180.94,2.98]
[1755810841437,2.87,180.99,180.96,0.03809676]
[1755810841636,2.87,181.0,180.96,0.03809676]
[1755810841939,2.87,181.01,180.96,0.03809676]
[1755810842137,6.27158882,181.02,180.96,0.03809676]
[1755810842539,2.87,180.97,180.96,0.03809676]
[1755810843736,2.87,181.03,180.96,3.01809676]
[1755810847438,2.87,181.06,180.96,3.01809676]
[1755810847940,2.87,181.06,180.96,2.98]
[1755810848347,2.87,181.06,180.99,0.04148259]
[1755810852254,2.87,181.06,180.99,3.02148259]
[1755810853449,7.233114,181.13,180.99,3.02148259]
[1755810853647,2.87,181.09,181.0,2.98]
[1755810853850,2.87,181.09,181.01,2.98]
[1755810854347,2.87,181.09,181.03,0.03645011]
[1755810858348,2.87,181.12,181.04,3.84490483]
[1755810859251,2.87,181.12,181.06,0.03497224]
[1755810860561,3.84490483,181.11,181.06,0.03497224]
[1755810860753,2.87,181.1,181.06,0.03497224]
[1755810860953,2.87,181.08,181.06,0.03497224]
[1755810861252,2.87,181.07,181.06,0.03497224]
[1755810862259,2.87,181.07,181.06,4.93350873]
[1755810865052,2.87,181.07,181.06,0.03497224]
[1755810865752,3.04,181.06,180.98,2.98]
[1755810865954,3.04,181.03,180.99,4.90823207]
[1755810866155,3.04,181.02,181.0,4.90823207]
[1755810866359,3.04,181.02,181.01,4.90823207]
[1755810868569,3.04,181.02,180.95,3.02]
[1755810868761,3.04,181.02,180.96,4.92604643]
[1755810869059,3.04,181.0,180.97,4.92604643]
[1755810869264,3.88558859,181.03,180.98,4.92604643]
[1755810869563,3.04,181.0,180.99,4.92604643]
[1755810869958,0.03713016,181.01,180.99,4.92604643]
[1755810870155,0.03713016,181.01,181.0,4.92604643]
[1755810870356,3.07713016,181.01,181.0,4.92604643]
[1755810871057,3.07713016,181.01,181.0,4.93626859]
[1755810873261,3.07713016,181.01,181.0,1.82626859]
[1755810874563,3.63713016,181.01,180.9,3.07]
[1755810874759,6.88490483,180.98,180.9,3.07]
[1755810875367,0.03910878,180.96,180.9,3.07]
[1755810876771,0.03910878,180.96,180.9,6.91490483]
[1755810876967,0.03910878,180.96,180.91,3.07]
[1755810877163,0.03910878,180.96,180.9,3.84490483]
[1755810877365,0.03910878,180.96,180.94,3.84490483]
[1755810877667,0.03910878,180.96,180.95,3.07]
[1755810877967,3.04,181.03,180.95,3.07]
[1755810878165,0.03667852,180.97,180.94,3.84490483]
[1755810878369,0.03667852,180.97,180.96,3.07]
[1755810878667,3.04,181.03,180.96,3.07]
[1755810878972,0.04205112,180.98,180.96,3.07]
[1755810879158,0.04205112,180.98,180.94,3.84490483]
[1755810879566,0.04205112,180.98,180.97,3.07]
[1755810881171,0.04205112,180.98,180.9,4.64199386]
[1755810881370,0.04205112,180.98,180.95,3.07]
[1755810881770,3.04,181.0,180.95,3.07]
[1755810881970,3.04,181.0,180.96,3.07]
[1755810882161,0.041022,180.98,180.97,3.07]
[1755810882570,3.04,181.03,180.97,3.07]
[1755810882973,0.0403924,180.99,180.97,3.07]
[1755810883371,0.0403924,180.99,180.89,4.64199386]
[1755810883565,0.0403924,180.99,180.91,3.07]
[1755810883966,6.88490483,181.0,180.91,3.07]
[1755810884264,0.0373493,180.97,180.91,3.07]
[1755810888469,0.0373493,180.97,180.93,3.07]
[1755810888869,3.04,181.01,180.93,3.07]
[1755810889076,3.04,181.01,180.93,6.91490483]
[1755810889377,0.04247816,180.97,180.95,3.07]
[1755810889568,0.04247816,180.97,180.96,3.07]
[1755810891972,0.04247816,180.97,180.96,6.91490483]
[1755810895070,0.04247816,180.97,180.96,3.07]
[1755810895271,2.99247816,180.97,180.91,6.66490483]
[1755810895775,2.95,180.97,180.91,6.66490483]
[1755810895967,0.03688818,180.96,180.91,6.66490483]
[1755810896172,0.03688818,180.96,180.91,3.84490483]
[1755810896369,0.03688818,180.96,180.93,2.82]
[1755810897884,0.03688818,180.96,180.92,2.82]
[1755810898179,0.03688818,180.96,180.94,2.82]
[1755810899781,0.03688818,180.96,180.9,3.84490483]
[1755810899990,0.03688818,180.96,180.92,2.82]
[1755810900282,0.03688818,180.96,180.9,3.84490483]
[1755810900483,0.03688818,180.96,180.89,2.82]
[1755810900982,2.95,180.95,180.89,2.82]
[1755810901376,6.79490483,180.95,180.89,2.82]
[1755810901682,6.79490483,180.95,180.84,3.84490483]
[1755810901683,2.95,180.94,180.85,2.82]
[1755810901985,0.03688818,180.96,180.88,2.82]
[1755810902185,2.95,180.97,180.88,2.82]
[1755810902575,0.04218138,180.94,180.88,2.82]
[1755810902976,0.04218138,180.94,180.89,3.84490483]
[1755810903284,0.04218138,180.94,180.93,2.82]
[1755810903477,2.95,181.01,180.93,2.82]
[1755810903874,0.04068618,180.95,180.94,2.82]
[1755810904082,2.95,181.01,180.94,2.82]
[1755810904478,0.03896311,180.96,180.94,2.82]
[1755810904784,0.03896311,180.96,180.93,2.82]
[1755810904982,0.03896311,180.96,180.91,3.84490483]
[1755810904983,2.98896311,180.96,180.91,3.84490483]
[1755810905282,2.95,180.95,180.85,2.82]
[1755810905485,2.95,180.92,180.85,2.82]
[1755810906387,2.95,180.89,180.82,2.82]
[1755810906780,2.95,180.89,180.77,152.17970905]
[1755810906980,2.95,180.89,180.79,2.82]
[1755810907581,0.03797389,180.86,180.79,2.82]
[1755810909286,2.98797389,180.86,180.79,2.82]
[1755810926899,0.03797389,180.86,180.79,6.67567993]
[1755810927191,0.03797389,180.86,180.81,3.85567993]
[1755810927491,2.86797389,180.86,180.79,3.85567993]
[1755810927696,2.83,180.86,180.82,2.92]
[1755810927897,0.0395556,180.84,180.82,2.92]
[1755810928697,0.0395556,180.84,180.83,2.92]
[1755810937399,2.83,180.91,180.83,6.77567993]
[1755810937603,6.68567993,180.91,180.84,2.92]
[1755810938597,6.68567993,180.91,180.86,0.03504505]
[1755810938794,2.83,180.9,180.86,0.03504505]
[1755810939002,2.83,180.89,180.86,0.03504505]
[1755810940597,2.83,180.91,180.87,2.92]
[1755810940798,2.83,180.91,180.86,0.03504505]
[1755810941204,2.83,180.91,180.88,2.92]
[1755810941703,6.68567993,180.98,180.87,2.92]
[1755810942500,6.68567993,180.98,180.91,0.04011739]
[1755810942501,2.83,180.98,180.91,0.04011739]
[1755810942703,2.83,180.98,180.92,6.77567993]
[1755810943200,6.68567993,181.02,180.92,3.85567993]
[1755810943398,6.68567993,181.02,180.93,2.92]
[1755810944008,6.68567993,181.02,180.96,0.03774112]
[1755810945000,2.83,181.02,180.96,2.95774112]
[1755810951111,2.83,181.02,180.96,6.81342105]
[1755810952012,2.83,181.05,180.97,2.92]
[1755810952911,2.83,181.05,180.99,0.03592576]
[1755810953110,2.83,181.05,180.99,3.14592576]
[1755810954615,2.83,181.05,180.99,7.00160569]
[1755810954807,371.68,181.07,180.99,7.00160569]
[1755810955012,371.68,181.07,181.0,3.85567993]
[1755810956617,371.68,181.07,180.99,3.14592576]
[1755810956809,371.68,181.07,180.99,7.00160569]
[1755810957208,2.96,181.06,180.99,3.14592576]
[1755810958109,2.96,181.04,180.99,0.03592576]
[1755810958314,3.85567993,181.05,180.99,0.03592576]
[1755810958515,143.28,181.06,181.0,3.11]
[1755810959017,2.96,181.05,180.99,0.03592576]
[1755810960417,6.81567993,181.05,180.99,0.03592576]
[1755810960619,3.85567993,181.03,180.99,0.03592576]
[1755810961115,2.96,181.0,180.99,0.03592576]
[1755810961922,143.2,181.0,180.99,0.03592576]
[1755810962424,0.03658136,181.01,180.99,0.03592576]
[1755810962923,2.96,181.0,180.99,0.03592576]
[1755810966622,3.52,181.0,180.89,3.11]
[1755810966824,6.81567993,180.98,180.89,3.11]
[1755810967421,2.96,181.03,180.93,3.85567993]
[1755810967618,140.1,181.02,180.94,3.11]
[1755810968023,0.04147035,181.0,180.94,3.11]
[1755810970418,0.04147035,181.0,180.96,3.85567993]
[1755810970628,0.04147035,181.0,180.97,3.11]
[1755810970820,0.04147035,181.0,180.96,3.85567993]
[1755810971028,0.04147035,181.0,180.99,3.11]
[1755810972329,0.04147035,181.0,180.92,3.11]
[1755810972520,0.04147035,181.0,180.94,3.11]
[1755810972721,3.85567993,180.98,180.91,3.11]
[1755810975231,2.9954522,180.99,180.91,3.11]
[1755810976332,3.85567993,180.98,180.91,3.11]
[1755810977938,2.96,180.97,180.91,3.11]
[1755810978330,0.0354522,180.99,180.91,3.11]
[1755810978932,2.96,180.98,180.91,3.11]
[1755810980239,0.0354522,180.99,180.91,3.11]
[1755810982440,0.0354522,180.99,180.91,8.6385]
[1755810982640,0.0354522,180.99,180.91,3.11]
[1755810985644,0.0354522,180.99,180.91,6.96567993]
[1755810985842,0.0354522,180.99,180.92,3.05]
[1755810987044,0.0354522,180.99,180.92,5.5284]
[1755810987244,0.0354522,180.99,180.93,3.05]
[1755810987838,0.0354522,180.99,180.95,3.05]
[1755810990148,0.0354522,180.99,180.98,3.05]
[1755810991249,0.0354522,180.99,180.96,3.05]
[1755810992155,0.0354522,180.99,180.92,3.05]
[1755810994447,2.92,180.97,180.92,3.05]
[1755810994644,3.85567993,180.98,180.92,3.05]
[1755810994846,2.92,180.96,180.92,3.05]
[1755810995149,3.85567993,180.98,180.92,3.05]
[1755810995350,3.85567993,180.98,180.86,4.64199386]
[1755810995551,2.92,180.97,180.87,3.05]
[1755810995947,149.29590999,181.03,180.87,3.05]
[1755810995948,3.85567993,180.95,180.87,3.05]
[1755810996143,0.03688193,180.94,180.87,3.05]
[1755810996944,3.85567993,180.92,180.87,3.05]
[1755810997147,2.92,180.91,180.87,3.05]
[1755810997349,0.03688193,180.94,180.84,3.05]
[1755810997649,0.03688193,180.94,180.88,3.85567993]
[1755810997844,2.92,180.97,180.9,3.05]
[1755810998043,6.77567993,181.0,180.9,3.05]
[1755810998248,0.03696271,180.93,180.9,6.90567993]
[1755810998552,6.77567993,181.0,180.92,3.05]
[1755810998749,0.03948042,180.93,180.92,3.05]
[1755810999153,6.77567993,181.0,180.92,3.05]
[1755810999653,2.92,180.93,180.85,3.05]
[1755810999853,6.77567993,180.93,180.85,3.05]
[1755811000243,0.04085645,180.91,180.85,3.05]
[1755811000557,0.04085645,180.91,180.89,3.05]
[1755811000755,0.04085645,180.91,180.9,3.05]
[1755811000955,0.04085645,180.91,180.9,6.90567993]
[1755811002652,0.04085645,180.91,180.9,3.05]
[1755811008158,6.77567993,181.01,180.9,3.05]
[1755811008459,2.92,181.01,180.95,3.85567993]
[1755811008651,2.92,181.0,180.96,3.05]
[1755811009459,2.92,181.0,180.96,3.09201525]
[1755811010564,2.92,180.99,180.96,0.04201525]
[1755811010958,2.92,181.03,180.96,3.09201525]
[1755811012861,3.85567993,181.02,180.96,0.04201525]
[1755811013164,3.04,181.01,180.96,0.04201525]
[1755811013559,3.04,181.03,180.96,0.04201525]
[1755811013765,3.85567993,181.02,180.96,0.04201525]
[1755811013964,3.04,181.0,180.96,0.04201525]
[1755811014165,3.85567993,181.02,180.96,0.04201525]
[1755811014556,6.89567993,181.02,180.96,0.04201525]
[1755811016264,3.04,181.02,180.97,3.04]
[1755811016464,3.04,181.02,180.98,3.04]
[1755811016770,3.04,181.04,180.96,0.04201525]
[1755811020371,3.04,181.01,180.96,0.04201525]
[1755811020572,3.04,180.99,180.96,0.04201525]
[1755811020767,3.04,180.98,180.96,0.04201525]
[1755811021567,3.04,181.0,180.96,0.04201525]
[1755811021767,3.04,181.0,180.96,3.08201525]
[1755811021967,3.04,181.04,180.96,3.08201525]
[1755811022369,3.04,181.04,180.96,3.04]
[1755811022770,3.04,181.04,180.98,0.03853651]
[1755811024564,3.04,181.07,180.98,3.07853651]
[1755811025565,6.89567993,181.07,180.98,3.07853651]
[1755811025766,3.85567993,181.05,180.98,3.07853651]
[1755811025969,3.04,181.04,180.98,0.03853651]
[1755811026171,3.04,181.04,180.95,3.04]
[1755811026575,3.04,181.0,180.99,0.04205258]
[1755811027274,9.25143778,181.05,180.99,3.08205258]
[1755811027471,6.89567993,181.05,180.99,0.04205258]
[1755811027678,3.04,181.05,180.99,0.04205258]
[1755811028478,3.85567993,181.03,180.99,0.04205258]
[1755811028781,3.04,181.01,180.99,0.04205258]
[1755811028968,3.04,181.0,180.99,0.04205258]
[1755811029170,3.85567993,181.04,180.99,0.04205258]
[1755811029373,3.04,181.02,180.99,0.04205258]
[1755811030578,3.85567993,181.04,180.99,0.04205258]
[1755811030775,3.04,181.01,180.99,0.04205258]
[1755811032079,3.85567993,181.04,180.99,0.04205258]
[1755811032080,3.04,181.02,180.99,0.04205258]
[1755811032675,3.85567993,181.04,180.99,0.04205258]
[1755811032883,3.04,181.0,180.99,0.04205258]
[1755811038387,3.04,181.02,180.99,0.04205258]
[1755811038882,3.85567993,181.03,180.99,0.04205258]
[1755811039085,3.04,181.0,180.99,0.04205258]
[1755811040380,6.89567993,181.03,180.99,0.04205258]
[1755811040585,3.04,181.03,180.99,3.08205258]
[1755811040883,6.89567993,181.06,181.0,3.04]
[1755811041076,3.04,181.06,181.0,3.04]